[Event "Titled Tuesday Blitz June 28 Early 2022"]
[White "Cherniaiev, Tykhon"]
[Black "Ozturk, Efe Hakan"]
[WhiteFideId "14182360"]
[BlackFideId "34550216"]
[WhiteElo "2289"]
[BlackElo "1924"]
[Result "1-0"]
[Round "04"]
[TimeControl "180+1"]
[Date "2022.06.28"]
[WhiteClock "0:01:12"]
[BlackClock "0:00:46"]

1. Nf3 {[%clk 0:03:00]}  Nf6 {[%clk 0:02:58]} 2. d4 {[%clk 0:03:01]}  e6 {[%clk 0:02:52]} 3. c4 {[%clk 0:03:01]}  d5 {[%clk 0:02:47]} 4. g3 {[%clk 0:03:02]}  Be7 {[%clk 0:02:47]} 5. Bg2 {[%clk 0:03:02]}  O-O {[%clk 0:02:47]} 6. O-O {[%clk 0:03:03]}  dxc4 {[%clk 0:02:46]} 7. Qc2 {[%clk 0:03:02]}  a6 {[%clk 0:02:46]} 8. Qxc4 {[%clk 0:03:03]}  b5 {[%clk 0:02:46]} 9. Qc2 {[%clk 0:03:03]}  Bb7 {[%clk 0:02:46]} 10. Bg5 {[%clk 0:03:04]}  Nc6 {[%clk 0:02:45]} 11. e3 {[%clk 0:02:52]}  Ra7 {[%clk 0:02:44]} 12. a3 {[%clk 0:02:49]}  Qa8 {[%clk 0:02:41]} 13. Nbd2 {[%clk 0:02:46]}  e5 {[%clk 0:02:24]} 14. Nxe5 {[%clk 0:02:10]}  Nxd4 {[%clk 0:02:21]} 15. Bxb7 {[%clk 0:02:09]}  Nxc2 {[%clk 0:01:51]} 16. Bxa8 {[%clk 0:02:09]}  Nxa1 {[%clk 0:01:51]} 17. Bg2 {[%clk 0:02:04]}  h6 {[%clk 0:01:21]} 18. Nc6 {[%clk 0:01:33]}  hxg5 {[%clk 0:01:08]} 19. Nxe7+ {[%clk 0:01:21]}  Kh7 {[%clk 0:01:07]} 20. Nc6 {[%clk 0:01:22]}  Raa8 {[%clk 0:01:03]} 21. Rxa1 {[%clk 0:01:22]}  Nd7 {[%clk 0:00:51]} 22. Nb3 {[%clk 0:01:19]}  Nb6 {[%clk 0:00:49]} 23. Nba5 {[%clk 0:01:11]}  Nc4 {[%clk 0:00:45]} 24. Nxc4 {[%clk 0:01:11]}  bxc4 {[%clk 0:00:46]} 25. Rc1 {[%clk 0:01:12]} 1-0


[Site "https://www.chess.com"]

[Event "Titled Tuesday Blitz June 28 Early 2022"]
[White "Costachi, Mihnea"]
[Black "Oparin, Grigoriy"]
[WhiteFideId "1217518"]
[BlackFideId "24125890"]
[WhiteElo "2476"]
[BlackElo "2639"]
[Result "0-1"]
[Round "04"]
[TimeControl "180+1"]
[Date "2022.06.28"]
[WhiteClock "0:00:07"]
[BlackClock "0:01:52"]

1. d4 {[%clk 0:03:00]}  Nf6 {[%clk 0:02:59]} 2. c4 {[%clk 0:03:00]}  g6 {[%clk 0:03:00]} 3. Nc3 {[%clk 0:03:00]}  d5 {[%clk 0:03:01]} 4. Nf3 {[%clk 0:03:00]}  Bg7 {[%clk 0:03:01]} 5. h4 {[%clk 0:03:01]}  dxc4 {[%clk 0:02:59]} 6. e4 {[%clk 0:03:01]}  c5 {[%clk 0:02:59]} 7. d5 {[%clk 0:03:02]}  O-O {[%clk 0:02:59]} 8. Bxc4 {[%clk 0:02:59]}  Bg4 {[%clk 0:02:57]} 9. Be2 {[%clk 0:02:54]}  Nbd7 {[%clk 0:02:47]} 10. Be3 {[%clk 0:02:49]}  b5 {[%clk 0:02:35]} 11. e5 {[%clk 0:02:45]}  Bxf3 {[%clk 0:02:30]} 12. gxf3 {[%clk 0:02:29]}  Nxe5 {[%clk 0:02:29]} 13. Bxc5 {[%clk 0:02:24]}  a6 {[%clk 0:02:21]} 14. Qb3 {[%clk 0:02:06]}  Rc8 {[%clk 0:02:16]} 15. Be3 {[%clk 0:01:59]}  Nc4 {[%clk 0:02:16]} 16. Rd1 {[%clk 0:01:53]}  Nxe3 {[%clk 0:02:14]} 17. fxe3 {[%clk 0:01:53]}  Qb6 {[%clk 0:02:15]} 18. e4 {[%clk 0:01:41]}  Nh5 {[%clk 0:02:14]} 19. Rf1 {[%clk 0:00:44]}  Be5 {[%clk 0:02:10]} 20. a3 {[%clk 0:00:35]}  Qe3 {[%clk 0:02:05]} 21. Rd3 {[%clk 0:00:35]}  Qc1+ {[%clk 0:02:04]} 22. Kf2 {[%clk 0:00:20]}  Bg3+ {[%clk 0:02:05]} 23. Kg1 {[%clk 0:00:18]}  Qf4 {[%clk 0:02:05]} 24. Bd1 {[%clk 0:00:15]}  Qxh4 {[%clk 0:02:04]} 25. Qc2 {[%clk 0:00:15]}  Nf4 {[%clk 0:02:04]} 26. Rd2 {[%clk 0:00:07]}  f5 {[%clk 0:01:52]} 27. Rg2 {[%clk 0:00:06]}  Nh3+ {[%clk 0:01:50]} 28. Kh1 {[%clk 0:00:06]}  Nf2+ {[%clk 0:01:51]} 29. Kg1 {[%clk 0:00:07]}  Qh1# {[%clk 0:01:52]} 0-1


[Site "https://www.chess.com"]

[Event "Titled Tuesday Blitz June 28 Early 2022"]
[White "Cruz, Cristhian"]
[Black "Orlov, Georgi"]
[WhiteFideId "3801969"]
[BlackFideId "2011271"]
[WhiteElo "2497"]
[BlackElo "2522"]
[Result "0-1"]
[Round "04"]
[TimeControl "180+1"]
[Date "2022.06.28"]
[WhiteClock "0:00:07"]
[BlackClock "0:00:05"]

1. d4 {[%clk 0:03:00]}  Nf6 {[%clk 0:02:59]} 2. c4 {[%clk 0:03:00]}  Nc6 {[%clk 0:02:59]} 3. Nf3 {[%clk 0:02:59]}  e6 {[%clk 0:03:00]} 4. g3 {[%clk 0:02:58]}  Bb4+ {[%clk 0:02:59]} 5. Bd2 {[%clk 0:02:58]}  Qe7 {[%clk 0:03:00]} 6. Nc3 {[%clk 0:02:56]}  Bxc3 {[%clk 0:02:57]} 7. Bxc3 {[%clk 0:02:56]}  Ne4 {[%clk 0:02:58]} 8. Rc1 {[%clk 0:02:56]}  d6 {[%clk 0:02:56]} 9. Bg2 {[%clk 0:02:56]}  O-O {[%clk 0:02:56]} 10. O-O {[%clk 0:02:56]}  Nxc3 {[%clk 0:02:52]} 11. Rxc3 {[%clk 0:02:56]}  e5 {[%clk 0:02:52]} 12. d5 {[%clk 0:02:56]}  Nb8 {[%clk 0:02:49]} 13. Nd2 {[%clk 0:02:26]}  a5 {[%clk 0:02:46]} 14. a3 {[%clk 0:01:52]}  a4 {[%clk 0:02:41]} 15. c5 {[%clk 0:01:50]}  Nd7 {[%clk 0:02:20]} 16. cxd6 {[%clk 0:01:40]}  cxd6 {[%clk 0:02:19]} 17. Rc4 {[%clk 0:01:33]}  Nc5 {[%clk 0:02:14]} 18. Ne4 {[%clk 0:01:33]}  Nb3 {[%clk 0:02:05]} 19. Rb4 {[%clk 0:01:28]}  f5 {[%clk 0:01:53]} 20. Nd2 {[%clk 0:01:26]}  Nc5 {[%clk 0:01:52]} 21. Nc4 {[%clk 0:01:14]}  Ra6 {[%clk 0:01:31]} 22. Qd2 {[%clk 0:01:06]}  f4 {[%clk 0:01:25]} 23. Qc3 {[%clk 0:00:51]}  Bg4 {[%clk 0:01:09]} 24. Re1 {[%clk 0:00:51]}  Qf6 {[%clk 0:00:59]} 25. gxf4 {[%clk 0:00:49]}  Qxf4 {[%clk 0:00:56]} 26. Qg3 {[%clk 0:00:49]}  Bd7 {[%clk 0:00:31]} 27. Qxf4 {[%clk 0:00:41]}  Rxf4 {[%clk 0:00:31]} 28. Rc1 {[%clk 0:00:41]}  Nb3 {[%clk 0:00:25]} 29. Rc3 {[%clk 0:00:40]}  b5 {[%clk 0:00:19]} 30. Ne3 {[%clk 0:00:25]}  Nd4 {[%clk 0:00:18]} 31. Kf1 {[%clk 0:00:24]}  Ra8 {[%clk 0:00:17]} 32. Rc7 {[%clk 0:00:24]}  Be8 {[%clk 0:00:15]} 33. Ke1 {[%clk 0:00:24]}  Bh5 {[%clk 0:00:12]} 34. f3 {[%clk 0:00:23]}  Bf7 {[%clk 0:00:11]} 35. Kf2 {[%clk 0:00:18]}  g5 {[%clk 0:00:09]} 36. Bh3 {[%clk 0:00:18]}  h5 {[%clk 0:00:08]} 37. Be6 {[%clk 0:00:18]}  Nxe6 {[%clk 0:00:07]} 38. dxe6 {[%clk 0:00:17]}  Bxe6 {[%clk 0:00:07]} 39. Rxf4 {[%clk 0:00:17]}  gxf4 {[%clk 0:00:06]} 40. Nc2 {[%clk 0:00:17]}  Rc8 {[%clk 0:00:06]} 41. Rxc8+ {[%clk 0:00:17]}  Bxc8 {[%clk 0:00:06]} 42. Nb4 {[%clk 0:00:18]}  Be6 {[%clk 0:00:06]} 43. e3 {[%clk 0:00:19]}  fxe3+ {[%clk 0:00:06]} 44. Kxe3 {[%clk 0:00:19]}  Kf7 {[%clk 0:00:05]} 45. Nd3 {[%clk 0:00:20]}  Ke7 {[%clk 0:00:05]} 46. f4 {[%clk 0:00:20]}  Kf6 {[%clk 0:00:06]} 47. fxe5+ {[%clk 0:00:20]}  dxe5 {[%clk 0:00:06]} 48. Nf2 {[%clk 0:00:21]}  Bd5 {[%clk 0:00:06]} 49. Nd1 {[%clk 0:00:21]}  Bc4 {[%clk 0:00:06]} 50. Nc3 {[%clk 0:00:21]}  Kf5 {[%clk 0:00:06]} 51. Ne4 {[%clk 0:00:21]}  Kg4 {[%clk 0:00:06]} 52. Nf6+ {[%clk 0:00:21]}  Kh4 {[%clk 0:00:06]} 53. Ke4 {[%clk 0:00:20]}  Bf7 {[%clk 0:00:06]} 54. Kxe5 {[%clk 0:00:17]}  Kh3 {[%clk 0:00:06]} 55. Ne4 {[%clk 0:00:08]}  Kxh2 {[%clk 0:00:05]} 56. Nd6 {[%clk 0:00:08]}  Bc4 {[%clk 0:00:05]} 57. Kf4 {[%clk 0:00:09]}  h4 {[%clk 0:00:05]} 58. Nf5 {[%clk 0:00:07]}  h3 {[%clk 0:00:05]} 59. Kf3 {[%clk 0:00:07]}  Kg1 {[%clk 0:00:05]} 0-1


[Site "https://www.chess.com"]

[Event "Titled Tuesday Blitz June 28 Early 2022"]
[White "De La Colina, Nicolas"]
[Black "Ider, Borya"]
[WhiteFideId "30946921"]
[BlackFideId "4901134"]
[WhiteElo "2046"]
[BlackElo "2512"]
[Result "0-1"]
[Round "04"]
[TimeControl "180+1"]
[Date "2022.06.28"]
[WhiteClock "0:00:02"]
[BlackClock "0:00:52"]

1. e4 {[%clk 0:03:00]}  e6 {[%clk 0:02:59]} 2. d4 {[%clk 0:03:00]}  d5 {[%clk 0:03:00]} 3. Nd2 {[%clk 0:03:00]}  c5 {[%clk 0:03:00]} 4. Ngf3 {[%clk 0:03:00]}  cxd4 {[%clk 0:03:00]} 5. exd5 {[%clk 0:03:00]}  Qxd5 {[%clk 0:03:01]} 6. Bc4 {[%clk 0:03:01]}  Qd6 {[%clk 0:03:02]} 7. O-O {[%clk 0:03:00]}  Nf6 {[%clk 0:03:03]} 8. Nb3 {[%clk 0:03:00]}  Nc6 {[%clk 0:03:03]} 9. Nbxd4 {[%clk 0:03:00]}  Nxd4 {[%clk 0:03:04]} 10. Nxd4 {[%clk 0:03:01]}  a6 {[%clk 0:03:04]} 11. Re1 {[%clk 0:03:01]}  Bd7 {[%clk 0:03:04]} 12. c3 {[%clk 0:02:53]}  Qc7 {[%clk 0:03:04]} 13. Qe2 {[%clk 0:02:51]}  Bd6 {[%clk 0:03:02]} 14. Bg5 {[%clk 0:02:43]}  Bxh2+ {[%clk 0:02:42]} 15. Kh1 {[%clk 0:02:42]}  Bd6 {[%clk 0:02:42]} 16. Bxf6 {[%clk 0:02:13]}  gxf6 {[%clk 0:02:43]} 17. Bxe6 {[%clk 0:02:12]}  fxe6 {[%clk 0:02:42]} 18. Nxe6 {[%clk 0:02:12]}  Bxe6 {[%clk 0:02:40]} 19. Qxe6+ {[%clk 0:02:13]}  Be7 {[%clk 0:02:41]} 20. Qxf6 {[%clk 0:01:52]}  Rf8 {[%clk 0:02:38]} 21. Qg7 {[%clk 0:01:52]}  Qd6 {[%clk 0:02:21]} 22. Re2 {[%clk 0:01:41]}  Qf6 {[%clk 0:02:19]} 23. Qxh7 {[%clk 0:01:26]}  Rf7 {[%clk 0:01:55]} 24. Qg8+ {[%clk 0:01:19]}  Rf8 {[%clk 0:01:54]} 25. Qh7 {[%clk 0:01:17]}  Rd8 {[%clk 0:01:36]} 26. Rae1 {[%clk 0:01:13]}  Rd7 {[%clk 0:01:37]} 27. Kg1 {[%clk 0:01:01]}  Kd8 {[%clk 0:01:36]} 28. Qh2 {[%clk 0:00:23]}  Bd6 {[%clk 0:01:35]} 29. Qh3 {[%clk 0:00:18]}  Rh8 {[%clk 0:01:31]} 30. Qg4 {[%clk 0:00:15]}  Qh6 {[%clk 0:01:20]} 31. Qh3 {[%clk 0:00:04]}  Qxh3 {[%clk 0:01:19]} 32. gxh3 {[%clk 0:00:04]}  Rxh3 {[%clk 0:01:17]} 33. Re8+ {[%clk 0:00:04]}  Kc7 {[%clk 0:01:17]} 34. Rg8 {[%clk 0:00:05]}  Rf7 {[%clk 0:01:17]} 35. Re2 {[%clk 0:00:05]}  Rhf3 {[%clk 0:01:14]} 36. Rg6 {[%clk 0:00:04]}  Bc5 {[%clk 0:01:15]} 37. Rg2 {[%clk 0:00:04]}  R3f5 {[%clk 0:01:15]} 38. Kf1 {[%clk 0:00:04]}  Kc6 {[%clk 0:01:14]} 39. Ke1 {[%clk 0:00:04]}  R7f6 {[%clk 0:01:09]} 40. b3 {[%clk 0:00:03]}  Rf3 {[%clk 0:01:07]} 41. Rc2 {[%clk 0:00:01]}  Re6+ {[%clk 0:01:05]} 42. Kf1 {[%clk 0:00:02]}  Rd3 {[%clk 0:01:04]} 43. Kg1 {[%clk 0:00:01]}  Rd1+ {[%clk 0:01:02]} 44. Kh2 {[%clk 0:00:01]}  Bd6+ {[%clk 0:01:03]} 45. Kh3 {[%clk 0:00:01]}  Rh6+ {[%clk 0:01:04]} 46. Kg4 {[%clk 0:00:02]}  Rg6+ {[%clk 0:01:03]} 47. Kf3 {[%clk 0:00:03]}  Rf6+ {[%clk 0:01:02]} 48. Ke2 {[%clk 0:00:03]}  Rd5 {[%clk 0:01:01]} 49. Rd2 {[%clk 0:00:03]}  Re5+ {[%clk 0:00:57]} 50. Kf1 {[%clk 0:00:03]}  Bc5 {[%clk 0:00:57]} 51. Re2 {[%clk 0:00:03]}  Ref5 {[%clk 0:00:57]} 52. Rd2 {[%clk 0:00:03]}  Rf3 {[%clk 0:00:56]} 53. Rc2 {[%clk 0:00:03]}  a5 {[%clk 0:00:56]} 54. Ke1 {[%clk 0:00:03]}  Re6+ {[%clk 0:00:54]} 55. Kf1 {[%clk 0:00:03]}  Rd3 {[%clk 0:00:54]} 56. Kg1 {[%clk 0:00:03]}  Re1+ {[%clk 0:00:52]} 57. Kh2 {[%clk 0:00:03]}  Bd6+ {[%clk 0:00:53]} 58. Rg3 {[%clk 0:00:01]}  Bxg3+ {[%clk 0:00:52]} 59. fxg3 {[%clk 0:00:02]}  Ree3 {[%clk 0:00:52]} 0-1


[Site "https://www.chess.com"]

[Event "Titled Tuesday Blitz June 28 Early 2022"]
[White "Dobre, Claudiu-Cristian"]
[Black "Ouellet, Maili-Jade"]
[WhiteFideId "1211854"]
[BlackFideId "2620472"]
[WhiteElo "2207"]
[BlackElo "1899"]
[Result "1-0"]
[Round "04"]
[TimeControl "180+1"]
[Date "2022.06.28"]
[WhiteClock "0:00:11"]
[BlackClock "0:00:02"]

1. c4 {[%clk 0:03:00]}  e6 {[%clk 0:02:59]} 2. Nf3 {[%clk 0:02:58]}  d5 {[%clk 0:02:58]} 3. b3 {[%clk 0:02:58]}  Nf6 {[%clk 0:02:57]} 4. Bb2 {[%clk 0:02:57]}  c5 {[%clk 0:02:57]} 5. e3 {[%clk 0:02:57]}  Nc6 {[%clk 0:02:57]} 6. cxd5 {[%clk 0:02:56]}  exd5 {[%clk 0:02:56]} 7. d4 {[%clk 0:02:56]}  Be7 {[%clk 0:02:55]} 8. Bb5 {[%clk 0:02:46]}  O-O {[%clk 0:02:52]} 9. O-O {[%clk 0:02:45]}  Bg4 {[%clk 0:02:50]} 10. dxc5 {[%clk 0:02:38]}  Bxc5 {[%clk 0:02:49]} 11. Be2 {[%clk 0:02:38]}  Qe7 {[%clk 0:02:46]} 12. Nc3 {[%clk 0:02:24]}  Rfd8 {[%clk 0:02:44]} 13. Nd4 {[%clk 0:02:18]}  Be6 {[%clk 0:02:09]} 14. Nxc6 {[%clk 0:01:39]}  bxc6 {[%clk 0:02:09]} 15. Na4 {[%clk 0:01:39]}  Bd6 {[%clk 0:02:00]} 16. Rc1 {[%clk 0:01:39]}  c5 {[%clk 0:01:41]} 17. Bxf6 {[%clk 0:01:29]}  Qxf6 {[%clk 0:01:26]} 18. Nxc5 {[%clk 0:01:28]}  Qe5 {[%clk 0:01:24]} 19. g3 {[%clk 0:01:24]}  Bh3 {[%clk 0:01:21]} 20. Re1 {[%clk 0:01:20]}  Qe7 {[%clk 0:01:16]} 21. Nd3 {[%clk 0:01:13]}  Ba3 {[%clk 0:01:06]} 22. Rc2 {[%clk 0:01:07]}  Bf5 {[%clk 0:01:03]} 23. Bg4 {[%clk 0:01:02]}  Bg6 {[%clk 0:01:01]} 24. Rd2 {[%clk 0:00:40]}  Rac8 {[%clk 0:00:41]} 25. Bxc8 {[%clk 0:00:34]}  Rxc8 {[%clk 0:00:42]} 26. Nf4 {[%clk 0:00:34]}  Be4 {[%clk 0:00:27]} 27. Nxd5 {[%clk 0:00:31]}  Qe5 {[%clk 0:00:25]} 28. Rd4 {[%clk 0:00:19]}  Rc1 {[%clk 0:00:16]} 29. Qd2 {[%clk 0:00:17]}  Rxe1+ {[%clk 0:00:15]} 30. Qxe1 {[%clk 0:00:17]}  Bb2 {[%clk 0:00:10]} 31. Qa5 {[%clk 0:00:12]}  h5 {[%clk 0:00:07]} 32. Rd2 {[%clk 0:00:11]}  Bxd5 {[%clk 0:00:06]} 33. Qxd5 {[%clk 0:00:10]}  Qf6 {[%clk 0:00:05]} 34. Kg2 {[%clk 0:00:11]}  g6 {[%clk 0:00:05]} 35. Qd8+ {[%clk 0:00:10]}  Kg7 {[%clk 0:00:05]} 36. Qxf6+ {[%clk 0:00:08]}  Bxf6 {[%clk 0:00:06]} 37. Rd6 {[%clk 0:00:08]}  Be5 {[%clk 0:00:05]} 38. Ra6 {[%clk 0:00:08]}  Bb8 {[%clk 0:00:05]} 39. b4 {[%clk 0:00:09]}  Kf8 {[%clk 0:00:06]} 40. a4 {[%clk 0:00:09]}  Ke7 {[%clk 0:00:06]} 41. b5 {[%clk 0:00:10]}  Kd7 {[%clk 0:00:06]} 42. b6 {[%clk 0:00:11]}  axb6 {[%clk 0:00:05]} 43. Rxb6 {[%clk 0:00:11]}  Be5 {[%clk 0:00:05]} 44. Rb5 {[%clk 0:00:11]}  Bf6 {[%clk 0:00:04]} 45. a5 {[%clk 0:00:11]}  Bd8 {[%clk 0:00:02]} 46. a6 {[%clk 0:00:11]} 1-0


[Site "https://www.chess.com"]

[Event "Titled Tuesday Blitz June 28 Early 2022"]
[White "Ferreira, Vitor Hugo Vieira"]
[Black "Garcia, Gabriel Gonzaga"]
[WhiteFideId "2119765"]
[BlackFideId "2138956"]
[WhiteElo "2165"]
[BlackElo "2240"]
[Result "1-0"]
[Round "04"]
[TimeControl "180+1"]
[Date "2022.06.28"]
[WhiteClock "0:00:09"]
[BlackClock "0:00:30"]

1. d4 {[%clk 0:02:53]}  Nf6 {[%clk 0:02:59]} 2. c4 {[%clk 0:02:52]}  e5 {[%clk 0:02:59]} 3. dxe5 {[%clk 0:02:49]}  Ng4 {[%clk 0:03:00]} 4. Nc3 {[%clk 0:02:41]}  Bc5 {[%clk 0:02:57]} 5. Ne4 {[%clk 0:02:36]}  Bb4+ {[%clk 0:02:57]} 6. Bd2 {[%clk 0:02:36]}  Bxd2+ {[%clk 0:02:56]} 7. Qxd2 {[%clk 0:02:35]}  Nxe5 {[%clk 0:02:57]} 8. Qc3 {[%clk 0:02:31]}  Qe7 {[%clk 0:02:49]} 9. O-O-O {[%clk 0:02:30]}  O-O {[%clk 0:02:43]} 10. Nf3 {[%clk 0:02:30]}  Ng4 {[%clk 0:02:39]} 11. h3 {[%clk 0:02:20]}  Nh6 {[%clk 0:02:04]} 12. Qc2 {[%clk 0:01:56]}  d6 {[%clk 0:02:03]} 13. Nc3 {[%clk 0:01:52]}  Bf5 {[%clk 0:02:00]} 14. e4 {[%clk 0:01:51]}  Be6 {[%clk 0:01:56]} 15. Bd3 {[%clk 0:01:43]}  Nd7 {[%clk 0:01:55]} 16. Nd5 {[%clk 0:01:28]}  Bxd5 {[%clk 0:01:55]} 17. exd5 {[%clk 0:01:27]}  g6 {[%clk 0:01:40]} 18. Rde1 {[%clk 0:01:26]}  Qf6 {[%clk 0:01:40]} 19. h4 {[%clk 0:01:17]}  Rae8 {[%clk 0:01:27]} 20. h5 {[%clk 0:01:17]}  Nc5 {[%clk 0:01:23]} 21. hxg6 {[%clk 0:01:16]}  Nxd3+ {[%clk 0:01:23]} 22. Qxd3 {[%clk 0:01:16]}  Rxe1+ {[%clk 0:01:20]} 23. Nxe1 {[%clk 0:01:10]}  Qxf2 {[%clk 0:01:20]} 24. gxh7+ {[%clk 0:01:02]}  Kg7 {[%clk 0:01:21]} 25. Qc3+ {[%clk 0:01:01]}  f6 {[%clk 0:01:18]} 26. Rh3 {[%clk 0:00:50]}  Kxh7 {[%clk 0:01:08]} 27. Rf3 {[%clk 0:00:37]}  Qh4 {[%clk 0:01:05]} 28. Qe3 {[%clk 0:00:21]}  Qg5 {[%clk 0:01:01]} 29. Rf4 {[%clk 0:00:16]}  Re8 {[%clk 0:00:53]} 30. Qxe8 {[%clk 0:00:14]}  Qxf4+ {[%clk 0:00:54]} 31. Kd1 {[%clk 0:00:15]}  Qd4+ {[%clk 0:00:48]} 32. Kc1 {[%clk 0:00:15]}  Qxc4+ {[%clk 0:00:48]} 33. Nc2 {[%clk 0:00:16]}  Qxd5 {[%clk 0:00:45]} 34. Qe7+ {[%clk 0:00:15]}  Kg6 {[%clk 0:00:45]} 35. Qxc7 {[%clk 0:00:15]}  Nf5 {[%clk 0:00:44]} 36. Qb8 {[%clk 0:00:14]}  Qxg2 {[%clk 0:00:43]} 37. Qg8+ {[%clk 0:00:14]}  Ng7 {[%clk 0:00:43]} 38. Qd8 {[%clk 0:00:13]}  Qg5+ {[%clk 0:00:37]} 39. Kd1 {[%clk 0:00:12]}  Qd5+ {[%clk 0:00:37]} 40. Ke2 {[%clk 0:00:12]}  Qc4+ {[%clk 0:00:34]} 41. Kd2 {[%clk 0:00:12]}  Qd5+ {[%clk 0:00:32]} 42. Kc3 {[%clk 0:00:12]}  Ne6 {[%clk 0:00:30]} 43. Qg8+ {[%clk 0:00:11]}  Kf5 {[%clk 0:00:31]} 44. Ne3+ {[%clk 0:00:12]}  Ke5 {[%clk 0:00:31]} 45. Nxd5 {[%clk 0:00:13]}  Kxd5 {[%clk 0:00:32]} 46. Qf7 {[%clk 0:00:12]}  Ke5 {[%clk 0:00:32]} 47. Qxb7 {[%clk 0:00:12]}  f5 {[%clk 0:00:31]} 48. Qxa7 {[%clk 0:00:12]}  d5 {[%clk 0:00:32]} 49. Qb8+ {[%clk 0:00:12]}  Ke4 {[%clk 0:00:32]} 50. Qe8 {[%clk 0:00:12]}  d4+ {[%clk 0:00:31]} 51. Kd2 {[%clk 0:00:10]}  Ke5 {[%clk 0:00:30]} 52. a4 {[%clk 0:00:10]}  Kd5 {[%clk 0:00:31]} 53. Qd7+ {[%clk 0:00:09]}  Ke5 {[%clk 0:00:31]} 54. a5 {[%clk 0:00:10]}  Nc5 {[%clk 0:00:30]} 55. Qc7+ {[%clk 0:00:10]}  Kd5 {[%clk 0:00:31]} 56. b4 {[%clk 0:00:09]}  Ne4+ {[%clk 0:00:30]} 57. Ke1 {[%clk 0:00:10]}  d3 {[%clk 0:00:29]} 58. a6 {[%clk 0:00:10]}  d2+ {[%clk 0:00:30]} 59. Kd1 {[%clk 0:00:10]}  Kd4 {[%clk 0:00:30]} 60. Qd7+ {[%clk 0:00:10]}  Ke3 {[%clk 0:00:30]} 61. a7 {[%clk 0:00:07]}  Nc3+ {[%clk 0:00:30]} 62. Kc2 {[%clk 0:00:08]}  d1=Q+ {[%clk 0:00:29]} 63. Qxd1 {[%clk 0:00:08]}  Nxd1 {[%clk 0:00:30]} 64. Kxd1 {[%clk 0:00:09]} 1-0


[Site "https://www.chess.com"]

[Event "Titled Tuesday Blitz June 28 Early 2022"]
[White "Florescu, Codrut-Constantin"]
[Black "OKEKE, Isaac Chukwudalu"]
[WhiteFideId "1202200"]
[BlackFideId "8508526"]
[WhiteElo "2191"]
[BlackElo "2102"]
[Result "1-0"]
[Round "04"]
[TimeControl "180+1"]
[Date "2022.06.28"]
[WhiteClock "0:00:07"]
[BlackClock "0:00:05"]

1. d4 {[%clk 0:03:00]}  Nf6 {[%clk 0:02:59]} 2. Nf3 {[%clk 0:03:01]}  e6 {[%clk 0:02:58]} 3. c4 {[%clk 0:03:01]}  b6 {[%clk 0:02:56]} 4. g3 {[%clk 0:03:00]}  Ba6 {[%clk 0:02:55]} 5. Nbd2 {[%clk 0:03:00]}  c5 {[%clk 0:02:47]} 6. Bg2 {[%clk 0:02:56]}  Nc6 {[%clk 0:02:41]} 7. dxc5 {[%clk 0:02:20]}  bxc5 {[%clk 0:02:32]} 8. O-O {[%clk 0:02:19]}  Be7 {[%clk 0:02:31]} 9. b3 {[%clk 0:02:18]}  O-O {[%clk 0:02:30]} 10. Bb2 {[%clk 0:02:18]}  d5 {[%clk 0:02:13]} 11. cxd5 {[%clk 0:02:17]}  exd5 {[%clk 0:02:02]} 12. Re1 {[%clk 0:02:17]}  Rc8 {[%clk 0:02:00]} 13. Rc1 {[%clk 0:02:11]}  Qa5 {[%clk 0:01:57]} 14. a3 {[%clk 0:02:07]}  Rfd8 {[%clk 0:01:57]} 15. Qc2 {[%clk 0:02:03]}  h6 {[%clk 0:01:51]} 16. Nh4 {[%clk 0:01:50]}  Nd4 {[%clk 0:01:43]} 17. Qd1 {[%clk 0:01:39]}  Ne4 {[%clk 0:01:17]} 18. b4 {[%clk 0:01:18]}  Qb5 {[%clk 0:00:36]} 19. Bf1 {[%clk 0:00:58]}  Nxd2 {[%clk 0:00:32]} 20. Qxd2 {[%clk 0:00:52]}  Nb3 {[%clk 0:00:24]} 21. Qc3 {[%clk 0:00:38]}  Bf6 {[%clk 0:00:24]} 22. Qxb3 {[%clk 0:00:38]}  c4 {[%clk 0:00:24]} 23. Qc2 {[%clk 0:00:23]}  d4 {[%clk 0:00:20]} 24. Nf3 {[%clk 0:00:17]}  d3 {[%clk 0:00:19]} 25. exd3 {[%clk 0:00:11]}  cxd3 {[%clk 0:00:20]} 26. Qd2 {[%clk 0:00:11]}  Bxb2 {[%clk 0:00:17]} 27. Qxb2 {[%clk 0:00:11]}  Rxc1 {[%clk 0:00:13]} 28. Qxc1 {[%clk 0:00:10]}  Qf5 {[%clk 0:00:10]} 29. Nd2 {[%clk 0:00:09]}  Bb7 {[%clk 0:00:10]} 30. Bg2 {[%clk 0:00:09]}  Bxg2 {[%clk 0:00:10]} 31. Kxg2 {[%clk 0:00:10]}  Rc8 {[%clk 0:00:10]} 32. Qd1 {[%clk 0:00:10]}  Rc2 {[%clk 0:00:10]} 33. Re3 {[%clk 0:00:10]}  Qd5+ {[%clk 0:00:09]} 34. Nf3 {[%clk 0:00:09]}  Qa2 {[%clk 0:00:09]} 35. Re8+ {[%clk 0:00:07]}  Kh7 {[%clk 0:00:09]} 36. Qxd3+ {[%clk 0:00:08]}  g6 {[%clk 0:00:09]} 37. Qe3 {[%clk 0:00:09]}  Qd5 {[%clk 0:00:07]} 38. Re4 {[%clk 0:00:08]}  Rc1 {[%clk 0:00:06]} 39. Rd4 {[%clk 0:00:08]}  Qa2 {[%clk 0:00:05]} 40. Rd8 {[%clk 0:00:07]} 1-0


[Site "https://www.chess.com"]